Cogmind - Beta 9.4 @@@ ROGUE MODE // 2020.01.20 @ 04:54:04 // Winter2019/RPGLIKE Player: PyroDawn Result: Destroyed by 8R-AWN with 8R-AWN's Boregun Performance ------------- Evolutions (0) 0 Regions Visited (3) 600 Robots Destroyed (33) 165 Value Destroyed (363) 363 Prototype IDs (5) 100 Alien Tech Used (0) 0 Bonus (87) 87 TOTAL SCORE: 1315 Bonus ------- Aligned with FarCom 300 Friendly Fire -213 Cogmind --------- Core Integrity 0/650 Matter 170/300 Energy 158/160 System Corruption 0% Temperature Cool (2) Movement Flying (40) Location -10/Exiles Parts ------- > --- POWER (1) -------- Light Nuclear Core > --- PROPULSION (2) --- Flight Unit > --- UTILITY (2) ------ Signal Interpreter > --- WEAPON (1) ------- (None) > --- INVENTORY (1) ---- Guided Plasma Cannon Peak State ------------ > --- POWER ------------ Light Nuclear Core > --- PROPULSION ------- Flight Unit Flight Unit > --- UTILITY ---------- Signal Interpreter Improved Light Armor Plating > --- WEAPON ----------- Guided Plasma Cannon > --- INVENTORY -------- Protomatter [Rating: 17] Favorites ----------- Power Light Nuclear Core Engine Light Ion Engine Power Core Light Nuclear Core Propulsion Flight Unit Flight Unit Flight Unit Utility Signal Interpreter Device Sensor Array Processor Signal Interpreter Protection Improved Light Armor Plating Weapon Mining Claw Energy Cannon Guided Plasma Cannon Ballistic Gun Light Assault Rifle Impact Weapon Hammer Slashing Weapon Mining Claw Build | -11 -10 -10 -10 ------- Run | Scr Mat Min Exi Slots Evolved 2 | 1 1 . . Power . | . . . . Propulsion 1 | 1 . . . Utility 1 | . 1 . . Weapon . | . . . . Parts Attached 37 | 1 13 2 21 Power 2 | . 2 . . Engine 1 | . 1 . . Core 1 | . 1 . . Reactor . | . . . . Propulsion 3 | . 3 . . Treads . | . . . . Leg . | . . . . Wheel . | . . . . Hover . | . . . . Flight 3 | . 3 . . Utility 5 | . 2 2 1 Device 1 | . 1 . . Storage . | . . . . Processor 1 | . 1 . . Hackware . | . . . . Protection 3 | . . 2 1 Artifact . | . . . . Weapon 27 | 1 6 . 20 Energy Gun . | . . . . Energy Cannon 17 | . . . 17 Ballistic Gun 1 | 1 . . . Ballistic Cannon . | . . . . Launcher . | . . . . Special Weapon . | . . . . Impact Weapon 1 | . 1 . . Slashing Weapon 8 | . 5 . 3 Piercing Weapon . | . . . . Special Melee Weapon . | . . . . Unidentified Prototypes 1 | . . . 1 Parts Lost 2 | . . . 2 Power . | . . . . Propulsion 1 | . . . 1 Utility 1 | . . . 1 Weapon . | . . . . Highest Loss Streak 1 | . . . 1 Average Slot Usage (%) 80 | . 64 99 81 Engine 1 | . 3 . . Core 11 | . 3 16 16 Flight 25 | . 17 33 26 Device 5 | . 13 5 . Processor 13 | . 9 16 16 Protection 7 | . . 10 11 Energy Cannon 1 | . . . 3 Slashing Weapon 11 | . 16 16 5 Naked Turns 2 | . 2 . . Heaviest Build 18 | 1 8 10 18 Greatest Support 13 | 8 13 13 13 Greatest Overweight (x) 1 | . . . 1 Average Overweight (x) . | . . . . Largest Inventory Capacity 1 | 1 1 1 1 Average Capacity 1 | 1 1 1 1 Most Carried 1 | . 1 1 1 Average Carried . | . . 1 . Final Capacity 1 | 1 1 1 1 Final Carried 1 | . 1 1 1 Class Distribution -------------------- 79% | Scavenger-Mutant 20% | Mutant Dominant Class ---------------- Mutant | -10/Materials Scavenger-Mutant | -10/Mines Scavenger-Mutant | -10/Exiles Resources | -11 -10 -10 -10 ----------- Run | Scr Mat Min Exi Matter Collected 430 | 210 130 20 70 Remotely . | . . . . Salvage Created 573 | . 350 150 73 Parts 35 | . 19 16 . Haulers Intercepted 2 | . 2 . . Recyclers Shooed . | . . . . Parts Field Recycled . | . . . . Retrieved Matter . | . . . . Parts Self-Destructed . | . . . . Prevented . | . . . . Kills | -11 -10 -10 -10 ------- Run | Scr Mat Min Exi Combat Hostiles Destroyed 25 | . 8 13 4 Melee 21 | . 8 13 . Cannons 4 | . . . 4 Classes Destroyed 9 | . 5 3 1 Tunneler 1 | . . 1 . Hauler 2 | . 2 . . Mechanic 1 | . 1 . . Turret 1 | . . . 1 Watcher 3 | . 3 . . Swarmer 5 | . 5 . . Grunt 5 | . 3 2 . Sentry 1 | . . 1 . Assembled 14 | . . 10 4 Best Kill Streak 6 | . 3 6 2 Combat Bots Only 6 | . 3 6 2 Max Kills in Single Turn 1 | . 1 1 1 Gunslinging . | . . . . Exploded . | . . . . Melee 1 | . 1 1 . Uniques/NPCs Destroyed . | . . . . Combat | -11 -10 -10 -10 -------- Run | Scr Mat Min Exi Damage Taken 1900 | . 303 625 972 Core 1455 | . 268 492 695 Absorbed by Shields . | . . . . Redirected to Core 789 | . 104 279 406 Core Remaining (%) 100 | 100 . . . Volleys Fired 51 | . . . 51 Largest 1 | . . . 1 Hottest 120 | . . . 120 Shots Fired 51 | . . . 51 Gun . | . . . . Cannon 51 | . . . 51 Launcher . | . . . . Special . | . . . . Kinetic . | . . . . Thermal 51 | . . . 51 Explosive . | . . . . Electromagnetic . | . . . . Robot Hit Streak 4 | . . . 4 Robot Miss Streak . | . . . . Penetration Max . | . . . . Secondary Targets . | . . . . Shots Hit Robots 70 | . 42 23 5 Core Hits 39 | . 15 15 9 Critical Hits 2 | . 1 1 . Critical Kills . | . . . . Critical Parts Destroyed 2 | . 1 1 . Melee Attacks 119 | . 78 40 1 Impact . | . . . . Slashing 119 | . 78 40 1 Piercing . | . . . . Sneak Attacks 5 | . 3 1 1 Combat Hostiles . | . . . . Follow-up Attacks . | . . . . Damage Inflicted 2690 | . 1166 706 818 Guns . | . . . . Cannons 747 | . . . 747 Explosions . | . . . . Melee 1943 | . 1166 706 71 Ramming . | . . . . Kinetic . | . . . . Thermal 747 | . . . 747 Explosive . | . . . . Electromagnetic . | . . . . Impact . | . . . . Slashing 1943 | . 1166 706 71 Piercing . | . . . . Highest Corruption . | . . . . Average Corruption . | . . . . Corruption Purged . | . . . . Overload Shots . | . . . . Overflow Damage 113 | . 59 13 41 Projectiles 41 | . . . 41 Explosions . | . . . . Melee 72 | . 59 13 . Knockbacks . | . . . . Impact . | . . . . Kinetic . | . . . . Secondary . | . . . . Self-Inflicted Damage . | . . . . Shots . | . . . . Rammed . | . . . . Targets Rammed . | . . . . Kicked . | . . . . Crushed . | . . . . Highest Temperature 378 | . . . 378 Average Temperature 143 | . . . 143 Received Heat Transfer 140 | . 24 96 20 Effects 5 | . . . 5 Energy Bleed 1 | . . . 1 Interference 3 | . . . 3 Damage (minor) 1 | . . . 1 Siege Activations . | . . . . Robots Corrupted . | . . . . Combat Hostiles . | . . . . Parts Fried . | . . . . Impact Corruptions . | . . . . Robots Melted . | . . . . Combat Hostiles . | . . . . Parts Melted . | . . . . Heat Transferred 1960 | . . . 1960 Parts Sabotaged . | . . . . Parts Stolen . | . . . . Parts Stripped . | . . . . Power Chain Reactions . | . . . . Missiles Intercepted . | . . . . Alert | -11 -10 -10 -10 ------- Run | Scr Mat Min Exi Peak Influence 285 | . 285 216 . Average Influence 120 | . 113 133 . Maximum Alert Level 1 | . 1 1 . Low Security (%) 81 | 100 78 84 . Level 1 18 | . 21 15 . Level 2 . | . . . . Level 3 . | . . . . Level 4 . | . . . . Level 5 . | . . . . High Security . | . . . . Max Security . | . . . . Squads Dispatched 1 | . 1 . . Investigation 1 | . 1 . . Extermination . | . . . . Reinforcement . | . . . . Assault . | . . . . Garrison . | . . . . Intercept . | . . . . Construction Impeded . | . . . . Haulers Reinforced . | . . . . Stealth | -11 -10 -10 -10 --------- Run | Scr Mat Min Exi Distress Signals . | . . . . Communications Jammed . | . . . . Distress Signals . | . . . . Times Spotted 57 | . 17 18 22 Peak Tracking Total 9 | . 7 4 9 Tactical Retreats 8 | . 1 2 5 Traps | -11 -10 -10 -10 ------- Run | Scr Mat Min Exi Traps Triggered 2 | . 2 . . Indirectly . | . . . . Trap Hack Attempts . | . . . . Triggered . | . . . . Disarmed . | . . . . Reprogrammed . | . . . . Reused . | . . . . Traps Extracted . | . . . . Installed 5 | . . 5 . Triggered . | . . . . Machines | -11 -10 -10 -10 ---------- Run | Scr Mat Min Exi Machines Disabled 3 | . . . 3 Max in Single Turn 1 | . . . 1 Machines Sabotaged . | . . . . Garrisons Compromised . | . . . . Overloaded Fab Kills . | . . . . Fab Network Shutdowns . | . . . . Hacking | -11 -10 -10 -10 --------- Run | Scr Mat Min Exi Machines Accessed 15 | . 11 . 4 Terminals 8 | . 8 . . Fabricators . | . . . . Repair Stations 1 | . 1 . . Recycling Units 2 | . 2 . . Scanalyzers . | . . . . Garrison Access . | . . . . Total Hacks 104 | . 56 . 48 Successful 85 | . 37 . 48 Failed 19 | . 19 . . Catastrophic . | . . . . Database Lockouts . | . . . . Manual 43 | . 42 . 1 Terminals 47 | . 47 . . Fabricators . | . . . . Repair Stations 3 | . 3 . . Recycling Units 6 | . 6 . . Scanalyzers . | . . . . Garrison Access . | . . . . Terminal Hacks 54 | . 6 . 48 Record 48 | . . . 48 Prototype ID Bank 2 | . 2 . . Branch Access Points 1 | . 1 . . Terminal Index 1 | . 1 . . Hauler Manifests 1 | . 1 . . Registered Components 1 | . 1 . . Fabricator Hacks . | . . . . Repair Station Hacks 2 | . 2 . . Scan Component 1 | . 1 . . Repair 1 | . 1 . . Recycling Unit Hacks 2 | . 2 . . Report Inventory 2 | . 2 . . Scanalyzer . | . . . . Garrison Access Hacks . | . . . . Unauthorized Hacks 61 | . 61 . . Terminals 23 | . 23 . . Track 7 | . 7 . . Assimilate 2 | . 2 . . Botnet 8 | . 8 . . Disrupt 3 | . 3 . . Operators 3 | . 3 . . Fabricators . | . . . . Repair Stations 1 | . 1 . . Mechanics 1 | . 1 . . Recycling Units 3 | . 3 . . Monitor 1 | . 1 . . Reject 2 | . 2 . . Scanalyzers . | . . . . Garrison Access . | . . . . Data Cores Recovered . | . . . . Used . | . . . . Hacking Detections 11 | . 11 . . Full Trace Events 1 | . 1 . . Feedback Events . | . . . . Feedback Blocked . | . . . . Robot Schematics Acquired . | . . . . Robots Built . | . . . . Matter . | . . . . Time . | . . . . Total Robot Build Rating . | . . . . Part Schematics Acquired . | . . . . Parts Built . | . . . . Matter . | . . . . Time . | . . . . Total Part Build Rating . | . . . . Parts Repaired 1 | . 1 . . Time 13 | . 13 . . Parts Recycled . | . . . . Recycled Matter . | . . . . Retrieved Matter . | . . . . Retrieved Components . | . . . . Parts Scanalyzed . | . . . . Part Schematics Acquired . | . . . . Parts Damaged . | . . . . Bothacking | -11 -10 -10 -10 ------------ Run | Scr Mat Min Exi Used RIF Installer . | . . . . Robots Hacked . | . . . . Non-combat . | . . . . Combat . | . . . . Robot Hacks Applied . | . . . . Relay Couplers Released . | . . . . Robots Rewired . | . . . . Allies Hacked . | . . . . Hacks Repelled . | . . . . Allies | -11 -10 -10 -10 -------- Run | Scr Mat Min Exi Total Allies 3 | . 2 1 . Largest Group 3 | . 2 3 3 Highest-Rated Group 51 | . 20 51 51 Highest-Rated Ally 31 | . 10 31 31 Total Orders 9 | . . 5 4 GOTO 6 | . . 3 3 FOLLOW 3 | . . 2 1 Ally Attacks 9 | . . . 9 Total Damage 436 | . . . 436 Kills 4 | . . . 4 Allies Corrupted . | . . . . Allies Melted . | . . . . Turrets Deployed 3 | . . . 3 Intel | -11 -10 -10 -10 ------- Run | Scr Mat Min Exi Robot Analysis Total . | . . . . Derelict Logs Recovered 2 | . . 2 . Drone Launches . | . . . . Drone Recoveries . | . . . . Exploration | -11 -10 -10 -10 ------------- Run | Scr Mat Min Exi Turns Passed 2183 | 12 753 544 874 Spaces Moved 3706 | 21 1139 862 1684 Core 440 | 21 419 . . Treads . | . . . . Legs . | . . . . Wheels . | . . . . Hover . | . . . . Flight 3266 | . 720 862 1684 Fastest Speed 37 | 50 37 37 37 Average Speed 39 | 50 42 37 38 Slowest Speed 120 | 50 50 37 120 Overloaded Moves . | . . . . Propulsion Burnouts . | . . . . Robots Hopped 31 | . 8 20 3 Cave-ins Triggered . | . . . . Exploration Rate (%) 73 | 3 99 99 94 Regions Visited 3 Branch Regions 2 Pre-discovered Areas 1 | . . . 1 Known Exits Taken 2 | . 1 1 . Unknown Exits Taken 1 | 1 . . . Scrap Searched 4 | . . 4 . Spaces Dug . | . . . . Terrain Destroyed 1 | . . . 1 Melee . | . . . . Projectile 1 | . . . 1 AOE . | . . . . Actions | -11 -10 -10 -10 --------- Run | Scr Mat Min Exi Total 4123 | 21 1244 988 1870 Wait 146 | . 8 63 75 Move 3648 | 20 1124 826 1678 Hop 24 | . 6 15 3 Pick Up 10 | . 2 2 6 Fast Attach 20 | 1 12 2 5 Attach 13 | . . . 13 Detach 13 | . . . 13 Swap 4 | . 1 . 3 Drop 21 | . 6 3 12 Fire 51 | . . . 51 Melee 119 | . 78 40 1 Ram . | . . . . Kick . | . . . . Crush . | . . . . Escape Stasis . | . . . . Rewire . | . . . . Trap 5 | . . 5 . Miscellaneous 49 | . 7 32 10 Route ------- -11/Scrapyard -10/Materials (discovered 4 exits: *Mat x3 / *Min) -10/Mines (discovered 3 exits: *Mat x2 / *Exi) -10/Exiles (discovered 2 exits: *Min x2) History --------- Turn | Location | Event 1 | -11/Scrapyard | Upgraded with Propulsion slot (x1) 4 | -11/Scrapyard | Discovered new exit (range 15) 13 | -11/Scrapyard | Entered Materials 30 | -10/Materials | Identified exit to Mines 50 | -10/Materials | Discovered new exit (range 6) 202 | -10/Materials | Repaired Mining Claw 246 | -10/Materials | Discovered new exit (range 10) 311 | -10/Materials | Upgraded with Utility slot (x1) 333 | -10/Materials | Build established: Mutant 504 | -10/Materials | Identified exit to Materials 520 | -10/Materials | Discovered exit to Materials (range 6) 748 | -10/Materials | Build established: Scavenger-Mutant 766 | -10/Materials | Entered Mines 766 | -10/Mines | Accompanied by 2 allies 768 | -10/Mines | Reached level 2 774 | -10/Mines | Learned Materials emergency access door positions 777 | -10/Mines | Assembled infested the area 867 | -10/Mines | Discovered exit to Materials (range 7) 933 | -10/Mines | Discovered exit to Materials (range 10) 937 | -10/Mines | Deemed a non-threat by the Exiles lab entrance 938 | -10/Mines | Discovered new exit (range 5) 939 | -10/Mines | Identified exit to Exiles 998 | -10/Mines | Found a hidden stash of uninstalled traps 1077 | -10/Mines | Joined a pair of Derelicts in attacking an 0b10 outpost 1194 | -10/Mines | Received a Mining Laser from a helpful Derelict 1310 | -10/Mines | Entered Exiles 1310 | -10/Exiles | Accompanied by 3 allies 1316 | -10/Exiles | Discovered new exit (range 15) 1320 | -10/Exiles | Identified exit to Mines 1330 | -10/Exiles | Met 8R-AWN 1337 | -10/Exiles | Met EX-HEX 1348 | -10/Exiles | Met EX-BIN 1383 | -10/Exiles | Met EX-DEC 1385 | -10/Exiles | Learned location of Zion (-6) 1401 | -10/Exiles | Discovered exit to Mines (range 14) 1433 | -10/Exiles | Visited The Gauntlet 1520 | -10/Exiles | Aligned with FarCom system 1520 | -10/Exiles | Given EX-Vault access code 1528 | -10/Exiles | Opened EX-Vault 1531 | -10/Exiles | Found Prototype Energy Cannon 1531 | -10/Exiles | Identified Gui. Plasma Cannon 1545 | -10/Exiles | Found Deploy-a-Sentry 1554 | -10/Exiles | Warned to stay clear of 0b10 Research branches 1624 | -10/Exiles | Found Deploy-a-Sentry 1682 | -10/Exiles | Found Deploy-a-Sentry 1779 | -10/Exiles | DAS Turret deployed 1780 | -10/Exiles | DAS Turret deployed 1781 | -10/Exiles | DAS Turret deployed 1808 | -10/Exiles | Attacked by the Exiles 2022 | -10/Exiles | Core integrity fell below 50% 2156 | -10/Exiles | Core integrity fell below 20% 2184 | -10/Exiles | Destroyed by 8R-AWN with 8R-AWN's Boregun Last Messages --------------- 02043_ Critical hit. 02043_ HV Slug penetrates Wall. 02090_ Knocked back. 02095_ Penetrated by HV Slug. 02111_ HV Slug penetrates Machine. 02111_ HV Slug penetrates Wall. 02137_ Upgraded: Core Integrity (+50) 02148_ Penetrated by HV Slug. 02148_ HV Slug penetrates Machine. 02148_ Machine disabled. 02148_ Penetrated by HV Slug. 02148_ HV Slug penetrates Machine. 02155_ Imp. Light Armor Plating destroyed. 02159_ Knocked back. 02161_ Destroyed Prototype Ballistic Cannon. 02167_ DAS Turret destroyed. 02174_ HV Slug penetrates Wall. 02184_ Penetrated by HV Slug. 02184_ HV Slug penetrates Wall. 02184_ Penetrated by HV Slug. Map ----- +----------------------------------------------------+ | ?????????## | | ??????????## | | ???????????##" | | ????????????#"" " """ | | ???????????##" ##"###" " | | ???????????#"" ""#####?#####" | | ??????????##""" """##?????????##" " | | ??????????#""" """##???????????#""" | | ??????????#""" ""#???????????##"" | | ??????????#"" ########??####"""" | | ??????????#""" ## ####""" | | ??????????#"" % """" | | ??????????##"" | | ???????????#"""" | | ???????????## | | ????????????#" " "" | | ????????????#"""" ""## ##""" " " " | | ????????????#"" ""#### ######""" "" | | ????????????#" """"##??# #????###"""" | | ????????????#""" """#??## ####???##### | | ????????????## ""##??#! "!#???????? | | ?????????????#"" """##???#" !#???????? | | ?????????????##""" ##????#" "#???????? | | ??????????????##"""" ##?????#!!""!"#???????? | | ???????????????### #??????########???????? | | ?????????????????##### @##?????????????????????? | | ?????????????????????#; #??????????????????????? | | ?????????????????????## #??????????????????????? | | ??????????????????????# #??????????????????????? | | ??????????????????????# #??????????????????????? | | ????#???????####??????# #??????????????????????? | | ??""""""#??#""""""????# #??????????????????????? | | #"""""""#??#"""""""#??# #??????????????????????? | | """""" "#??#" """"#??# #??????????????????????? | | #""" """#??#"" """#??# #??????????????????????? | | #"" ""????"" ""???# #??????????????????????? | | ###"""########"""###### ########???????????????? | | """ """""""" """"""z """""""#?""""??????????? | | "" """"""" "#"" ""#?????????? | | " ""#?????????? | | " " "#?????????? | | " """#?????????? | | "" #"" ""??????????? | | " " """"" " """" """""#?""""??????????? | | ###"""###""###"""########"""######??#????????????? | | ?"" ""#""#"" ""????"" ""???????????????????? | | #""" ""#""#""" ""???#"" """#??????????????????? | | #" """"""""#" " "???#"""""""#??????????????????? | | ?"""""""????"""""""???#"" """"#??????????????????? | | ??"""""??????""""""#???""""""????????????????????? | +----------------------------------------------------+ Best States ------------- Heat Dissipation 43 Energy Generation 14 Energy Capacity 160 Matter Stores 300 Matter Capacity 300 Sight Range 16 Robot Scan Range 26 Terrain Scan Density 10 Armor Coverage 150 Evasion (%) 62 Offensive Hacking 5 Defensive Hacking 5 Item Schematics ----------------- None Robot Schematics ------------------ None Fabricated ------------ Nothing Alien Tech Used ----------------- None Achievements -------------- None Challenges ------------ None RPGLIKE | -11 -10 -10 -10 --------- Run | Scr Mat Min Exi Levels Raised 1 | . . 1 . XP Earned 5575 | 3000 1375 850 350 XP Spent 4485 | 2350 500 1400 235 Upgrades 22 | 13 1 4 4 Propulsion Slot 1 | 1 . . . Utility Slot 1 | . 1 . . Core Integrity 1 | . . . 1 Heat Dissipation 3 | . . . 3 Mass Support 1 | 1 . . . Inventory Capacity 1 | 1 . . . Sensor Range 8 | 8 . . . Melee Accuracy 4 | . . 4 . Hack Attack % 1 | 1 . . . Hack Defense % 1 | 1 . . . Protomatter Created 243 | . 90 141 12 Integrity Restored 1018 | . 131 687 200 Core 796 | . 126 600 70 Parts 222 | . 5 87 130 Protomatter Decayed 129 | . 12 108 9 Game ------ Seed VariableMachineFalx Manual? 0 Play Time 01:02:42 Cumulative 461.1 hours Start 2020.01.20 @ 03:14:31 End 2020.01.20 @ 04:54:04 Sessions 1 Manual Loads 0 Difficulty Rogue Special Mode Winter2019/RPGLIKE Game No. 136 Rogue 136 Adventurer 0 Explorer 0 Win Type - Total 1 Types 1/0/0/0/0/0/0 Lore% 69 Gallery% 76 Achievement% 51 Wizard Run 0 Options --------- ASCII 0 Keyboard 0 Movement Arrows Keybinds 0 Fullscreen 1 Font 12/Smallcaps Map View 83x54 Tactical HUD 1 Map Filters NONE Filters NONE Steam 1 RUN: bd0c8cad-618a-42cd-9466-ffc9c316f52f